fUSD/lending_fUSD_20260526
["ID","MTS","AMOUNT","RATE_DAILY","PERIOD"]
[423013720,1779745907000,-168.04504696,0.00039452,120]
[423013722,1779745907000,-695.75,0.00039456,30]
[423013726,1779745907000,-231.16,0.0003947,120]
[423013724,1779745907000,-1015.38,0.00039468,30]
[423013717,1779745907000,-10000.0,0.00039428,30]
[423013719,1779745907000,-167.06718781,0.00039452,120]
[423013716,1779745907000,-20000.0,0.00039428,15]
[423013725,1779745907000,-1671.62194851,0.00039468,7]
[423013715,1779745907000,-10000.0,0.00039428,15]
[423013714,1779745907000,-1042.72303059,0.00039411,120]
[423013712,1779745907000,-1521.19014232,0.00039403,7]
[423013713,1779745907000,-2932.51288432,0.00039403,7]
[423013729,1779745907000,-28084.57950334,0.0003949,10]
[423013718,1779745907000,-156.31073718,0.00039452,120]
[423013733,1779745907000,-298.76,0.000395,60]
[423013734,1779745907000,-2000.0,0.000395,60]
[423013735,1779745907000,-1000.0,0.000395,30]
[423013754,1779745907000,-2634.25,0.00039756,120]
[423013756,1779745907000,-2634.25,0.00039756,120]
[423013753,1779745907000,-2634.25,0.00039756,120]
[423013751,1779745907000,-2634.25,0.00039756,120]
[423013752,1779745907000,-2634.25,0.00039756,120]
[423013749,1779745907000,-2634.25,0.00039756,120]
[423013748,1779745907000,-2634.25,0.00039756,120]
[423013750,1779745907000,-2634.25,0.00039756,120]
[423013746,1779745907000,-2634.25,0.00039756,120]
[423013745,1779745907000,-2634.25,0.00039756,120]
[423013755,1779745907000,-2634.25,0.00039756,120]
[423013743,1779745907000,-2634.25,0.00039756,120]
[423013744,1779745907000,-2634.25,0.00039756,120]
[423013742,1779745907000,-2634.25,0.00039756,120]
[423013740,1779745907000,-2634.25,0.00039756,120]
[423013741,1779745907000,-2634.25,0.00039756,120]
[423013739,1779745907000,-2634.25,0.00039756,120]
[423013738,1779745907000,-117978.51714443,0.00039756,120]
[423013737,1779745907000,-436730.36067187,0.00039756,30]
[423013736,1779745907000,-177794.47010968,0.000395,20]
[423013747,1779745907000,-2634.25,0.00039756,120]
[423013768,1779745908000,-7456.0,0.00039756,120]
[423013770,1779745908000,-506.7703707,0.00039756,120]
[423013772,1779745908000,-500.0,0.00039756,120]
[423013771,1779745908000,-500.0,0.00039756,120]
[423013773,1779745908000,-500.0,0.00039756,120]
[423013767,1779745908000,-501.1189676,0.00039756,120]
[423013769,1779745908000,-500.0,0.00039756,120]
[423013765,1779745908000,-500.0,0.00039756,120]
[423013762,1779745908000,-2634.45274359,0.00039756,120]
[423013764,1779745908000,-500.0,0.00039756,120]
[423013763,1779745908000,-500.0,0.00039756,120]
[423013759,1779745908000,-2634.25,0.00039756,120]
[423013761,1779745908000,-2634.25,0.00039756,120]
[423013758,1779745908000,-2634.25,0.00039756,120]
[423013760,1779745908000,-2634.25,0.00039756,120]
[423013757,1779745908000,-2634.25,0.00039756,120]
[423013776,1779745908000,-43770.51,0.00039756,120]
[423013766,1779745908000,-500.0,0.00039756,120]
[423013775,1779745908000,-505.70599314,0.00039756,120]
[423013774,1779745908000,-486.44530071,0.00039756,120]
[423013778,1779745908000,-2550.31404349,0.00039756,120]
[423013796,1779745908000,-500.0,0.00039756,120]
[423013795,1779745908000,-500.0,0.00039756,120]
[423013794,1779745908000,-50000.0,0.00039756,49]
[423013793,1779745908000,-50000.0,0.00039756,48]
[423013792,1779745908000,-538.3872557,0.00039756,120]
[423013791,1779745908000,-500.0,0.00039756,120]
[423013786,1779745908000,-500.0,0.00039756,120]
[423013789,1779745908000,-500.0,0.00039756,120]
[423013787,1779745908000,-500.0,0.00039756,120]
[423013790,1779745908000,-500.0,0.00039756,120]
[423013782,1779745908000,-50000.0,0.00039756,67]
[423013785,1779745908000,-50000.0,0.00039756,70]
[423013783,1779745908000,-50000.0,0.00039756,68]
[423013784,1779745908000,-50000.0,0.00039756,69]
[423013781,1779745908000,-50000.0,0.00039756,66]
[423013779,1779745908000,-20000.0,0.00039756,120]
[423013780,1779745908000,-343.98773667,0.00039756,120]
[423013788,1779745908000,-500.0,0.00039756,120]
[423013777,1779745908000,-157.38304031,0.00039756,120]
[423013809,1779745909000,-1253.1,0.00039756,120]
[423013810,1779745909000,-1253.1,0.00039756,120]
[423013813,1779745909000,-1253.1,0.00039756,120]
[423013819,1779745909000,-1253.1,0.00039756,120]
[423013812,1779745909000,-1253.1,0.00039756,120]
[423013814,1779745909000,-1253.1,0.00039756,120]
[423013808,1779745909000,-318.79536482,0.00039756,120]
[423013815,1779745909000,-1253.1,0.00039756,120]
[423013806,1779745909000,-500.0,0.00039756,30]
[423013798,1779745909000,-278.73223475,0.00039756,120]
[423013805,1779745909000,-2000000.0,0.00039756,120]
[423013804,1779745909000,-634.16308437,0.00039756,120]
[423013803,1779745909000,-274.01847804,0.00039756,80]
[423013801,1779745909000,-500.0,0.00039756,80]
[423013802,1779745909000,-500.0,0.00039756,80]
[423013800,1779745909000,-500.0,0.00039756,80]
[423013799,1779745909000,-500.0,0.00039756,80]
[423013816,1779745909000,-1253.1,0.00039756,120]
[423013797,1779745909000,-500.0,0.00039756,120]
[423013807,1779745909000,-456.5181493,0.00039756,120]
[423013818,1779745909000,-1253.1,0.00039756,120]
[423013811,1779745909000,-1253.1,0.00039756,120]
[423013820,1779745909000,-1253.1,0.00039756,120]
[423013817,1779745909000,-1253.1,0.00039756,120]
[423013838,1779745909000,-1342.37,0.00039756,120]
[423013839,1779745909000,-1342.37,0.00039756,120]
[423013837,1779745909000,-1342.37,0.00039756,120]
[423013836,1779745909000,-1342.37,0.00039756,120]
[423013835,1779745909000,-1342.37,0.00039756,120]
[423013834,1779745909000,-1342.37,0.00039756,120]
[423013832,1779745909000,-1253.24383132,0.00039756,120]
[423013833,1779745909000,-1342.37,0.00039756,120]
[423013831,1779745909000,-1253.1,0.00039756,120]
[423013840,1779745909000,-1342.37,0.00039756,120]
[423013829,1779745909000,-1253.1,0.00039756,120]
[423013830,1779745909000,-1253.1,0.00039756,120]
[423013821,1779745909000,-1253.1,0.00039756,120]
[423013823,1779745909000,-1253.1,0.00039756,120]
[423013822,1779745909000,-1253.1,0.00039756,120]
[423013824,1779745909000,-1253.1,0.00039756,120]
[423013825,1779745909000,-1253.1,0.00039756,120]
[423013827,1779745909000,-1253.1,0.00039756,120]
[423013828,1779745909000,-1253.1,0.00039756,120]
[423013826,1779745909000,-1253.1,0.00039756,120]
[423013856,1779745910000,-1342.57718414,0.00039756,120]
[423013850,1779745910000,-1342.37,0.00039756,120]
[423013854,1779745910000,-1342.37,0.00039756,120]
[423013855,1779745910000,-1342.37,0.00039756,120]
[423013852,1779745910000,-1342.37,0.00039756,120]
[423013853,1779745910000,-1342.37,0.00039756,120]
[423013851,1779745910000,-1342.37,0.00039756,120]
[423013849,1779745910000,-1342.37,0.00039756,120]
[423013844,1779745910000,-1342.37,0.00039756,120]
[423013847,1779745910000,-1342.37,0.00039756,120]
[423013845,1779745910000,-1342.37,0.00039756,120]
[423013846,1779745910000,-1342.37,0.00039756,120]
[423013843,1779745910000,-1342.37,0.00039756,120]
[423013841,1779745910000,-1342.37,0.00039756,120]
[423013842,1779745910000,-1342.37,0.00039756,120]
[423013857,1779745910000,-5750.42253624,0.00039756,120]
[423013848,1779745910000,-1342.37,0.00039756,120]
[423013858,1779745910000,-141942.4491591,0.00039756,120]
[423013861,1779745910000,-302000.0,0.00039756,120]
[423013873,1779745910000,-1584.12,0.00039756,120]
[423013859,1779745910000,-167.283204,0.00039756,120]
[423013875,1779745910000,-1584.12,0.00039756,120]
[423013876,1779745910000,-1584.12,0.00039756,120]
[423013872,1779745910000,-1584.12,0.00039756,120]
[423013874,1779745910000,-1584.12,0.00039756,120]
[423013870,1779745910000,-431.38919939,0.00039756,120]
[423013871,1779745910000,-516.2025367,0.00039756,120]
[423013868,1779745910000,-500.0,0.00039756,120]
[423013864,1779745910000,-500.0,0.00039756,120]
[423013867,1779745910000,-500.0,0.00039756,120]
[423013866,1779745910000,-500.0,0.00039756,120]
[423013865,1779745910000,-500.0,0.00039756,120]
[423013863,1779745910000,-500.0,0.00039756,120]
[423013862,1779745910000,-302000.0,0.00039756,60]
[423013860,1779745910000,-509831.0,0.00039756,60]
[423013869,1779745910000,-500.0,0.00039756,120]
[423013877,1779745910000,-1584.12,0.00039756,120]
[423013890,1779745911000,-1584.12,0.00039756,120]
[423013891,1779745911000,-1584.12,0.00039756,120]
[423013896,1779745911000,-649.77598281,0.00039756,120]
[423013892,1779745911000,-1584.12,0.00039756,120]
[423013895,1779745911000,-1584.24,0.00039756,120]
[423013885,1779745911000,-1584.12,0.00039756,120]
[423013893,1779745911000,-1584.12,0.00039756,120]
[423013889,1779745911000,-1584.12,0.00039756,120]
[423013878,1779745911000,-1584.12,0.00039756,120]
[423013887,1779745911000,-1584.12,0.00039756,120]
[423013886,1779745911000,-1584.12,0.00039756,120]
[423013884,1779745911000,-1584.12,0.00039756,120]
[423013881,1779745911000,-1584.12,0.00039756,120]
[423013882,1779745911000,-1584.12,0.00039756,120]
[423013880,1779745911000,-1584.12,0.00039756,120]
[423013879,1779745911000,-1584.12,0.00039756,120]
[423013888,1779745911000,-1584.12,0.00039756,120]
[423013897,1779745911000,-583285.0,0.00039756,120]
[423013883,1779745911000,-1584.12,0.00039756,120]
[423013898,1779745911000,-500.0,0.00039756,120]
[423013894,1779745911000,-1584.12,0.00039756,120]
[423013915,1779745911000,-500.0,0.00039756,120]
[423013914,1779745911000,-500.0,0.00039756,120]
[423013913,1779745911000,-500.0,0.00039756,120]
[423013912,1779745911000,-500.0,0.00039756,120]
[423013909,1779745911000,-500.0,0.00039756,120]
[423013910,1779745911000,-500.0,0.00039756,120]
[423013908,1779745911000,-500.0,0.00039756,120]
[423013911,1779745911000,-500.0,0.00039756,120]
[423013906,1779745911000,-630.89810674,0.00039756,120]
[423013904,1779745911000,-500.0,0.00039756,120]
[423013903,1779745911000,-500.0,0.00039756,120]
[423013905,1779745911000,-500.0,0.00039756,120]
[423013901,1779745911000,-500.0,0.00039756,120]
[423013900,1779745911000,-500.0,0.00039756,120]
[423013902,1779745911000,-500.0,0.00039756,120]
[423013907,1779745911000,-500.0,0.00039756,120]
[423013899,1779745911000,-500.0,0.00039756,120]
[423013928,1779745912000,-500.0,0.00039756,120]
[423013929,1779745912000,-515.56894184,0.00039756,120]
[423013933,1779745912000,-500.0,0.00039756,120]
[423013930,1779745912000,-512.19777067,0.00039756,120]
[423013932,1779745912000,-298.14472405,0.00039756,120]
[423013927,1779745912000,-278.41736437,0.00039756,120]
[423013931,1779745912000,-500.0,0.00039756,120]
[423013925,1779745912000,-500.0,0.00039756,120]
[423013916,1779745912000,-500.0,0.00039756,120]
[423013922,1779745912000,-500.0,0.00039756,120]
[423013923,1779745912000,-500.0,0.00039756,120]
[423013924,1779745912000,-500.0,0.00039756,120]
[423013920,1779745912000,-500.0,0.00039756,120]
[423013917,1779745912000,-500.0,0.00039756,120]
[423013919,1779745912000,-500.0,0.00039756,120]
[423013918,1779745912000,-500.0,0.00039756,120]
[423013934,1779745912000,-500.0,0.00039756,120]
[423013926,1779745912000,-500.0,0.00039756,120]
[423013936,1779745912000,-500.0,0.00039756,120]
[423013921,1779745912000,-500.0,0.00039756,120]
[423013939,1779745912000,-500.2,0.00039756,120]
[423013955,1779745912000,-1042.68,0.00039756,120]
[423013953,1779745912000,-1042.68,0.00039756,120]
[423013935,1779745912000,-629.85978343,0.00039756,120]
[423013951,1779745912000,-1042.68,0.00039756,120]
[423013952,1779745912000,-1042.68,0.00039756,120]
[423013950,1779745912000,-1042.68,0.00039756,120]
[423013946,1779745912000,-1042.68,0.00039756,120]
[423013948,1779745912000,-1042.68,0.00039756,120]
[423013949,1779745912000,-1042.68,0.00039756,120]
[423013954,1779745912000,-1042.68,0.00039756,120]
[423013943,1779745912000,-690.34358532,0.00039756,120]
[423013945,1779745912000,-1042.68,0.00039756,120]
[423013942,1779745912000,-5000.0,0.00039756,37]
[423013944,1779745912000,-189.72153578,0.00039756,120]
[423013941,1779745912000,-500.0,0.00039756,120]
[423013938,1779745912000,-512.0093558,0.00039756,120]
[423013940,1779745912000,-500.0,0.00039756,120]
[423013937,1779745912000,-500.0,0.00039756,120]
[423013947,1779745912000,-1042.68,0.00039756,120]
[423013968,1779745913000,-1042.79825191,0.00039756,120]
[423013967,1779745913000,-1042.68,0.00039756,120]
[423013966,1779745913000,-1042.68,0.00039756,120]
[423013965,1779745913000,-1042.68,0.00039756,120]
[423013964,1779745913000,-1042.68,0.00039756,120]
[423013963,1779745913000,-1042.68,0.00039756,120]
[423013958,1779745913000,-1042.68,0.00039756,120]
[423013962,1779745913000,-1042.68,0.00039756,120]
[423013961,1779745913000,-1042.68,0.00039756,120]
[423013957,1779745913000,-1042.68,0.00039756,120]
[423013959,1779745913000,-1042.68,0.00039756,120]
[423013956,1779745913000,-1042.68,0.00039756,120]
[423013960,1779745913000,-1042.68,0.00039756,120]
[423013969,1779745913000,-6153.0,0.00039756,30]
[423013971,1779745913000,-169.36229391,0.00039756,120]
[423013972,1779745913000,-185.0,0.00039756,30]
[423013970,1779745913000,-500.0,0.00039756,120]
[423013984,1779745913000,-1022.72,0.00039756,120]
[423013982,1779745913000,-1022.72,0.00039756,120]
[423013983,1779745913000,-1022.72,0.00039756,120]
[423013980,1779745913000,-351.16,0.00039756,120]
[423013979,1779745913000,-500.0,0.00039756,120]
[423013981,1779745913000,-150.03223821,0.00039756,90]
[423013978,1779745913000,-500.0,0.00039756,120]
[423013975,1779745913000,-500.0,0.00039756,120]
[423013976,1779745913000,-500.0,0.00039756,120]
[423013974,1779745913000,-500.0,0.00039756,120]
[423013973,1779745913000,-500.0,0.00039756,120]
[423013977,1779745913000,-500.0,0.00039756,120]
[423013994,1779745914000,-1022.72,0.00039756,120]
[423014000,1779745914000,-1022.72,0.00039756,120]
[423013999,1779745914000,-1022.72,0.00039756,120]
[423013996,1779745914000,-1022.72,0.00039756,120]
[423013998,1779745914000,-1022.72,0.00039756,120]
[423013997,1779745914000,-1022.72,0.00039756,120]
[423013995,1779745914000,-1022.72,0.00039756,120]
[423014001,1779745914000,-1022.72,0.00039756,120]
[423013993,1779745914000,-1022.72,0.00039756,120]
[423013990,1779745914000,-1022.72,0.00039756,120]
[423013989,1779745914000,-1022.72,0.00039756,120]
[423013991,1779745914000,-1022.72,0.00039756,120]
[423013988,1779745914000,-1022.72,0.00039756,120]
[423013986,1779745914000,-1022.72,0.00039756,120]
[423013985,1779745914000,-1022.72,0.00039756,120]
[423013992,1779745914000,-1022.72,0.00039756,120]
[423014003,1779745914000,-1022.72,0.00039756,120]
[423013987,1779745914000,-1022.72,0.00039756,120]
[423014007,1779745914000,-500.0,0.00039756,120]
[423014002,1779745914000,-1022.72,0.00039756,120]
[423014020,1779745914000,-500.0,0.00039756,120]
[423014019,1779745914000,-500.0,0.00039756,120]
[423014018,1779745914000,-500.0,0.00039756,120]
[423014016,1779745914000,-500.0,0.00039756,120]
[423014015,1779745914000,-500.0,0.00039756,120]
[423014014,1779745914000,-500.0,0.00039756,120]
[423014013,1779745914000,-500.0,0.00039756,120]
[423014017,1779745914000,-500.0,0.00039756,120]
[423014012,1779745914000,-500.0,0.00039756,120]
[423014010,1779745914000,-307.67492849,0.00039756,120]
[423014008,1779745914000,-499.1407453,0.00039756,120]
[423014009,1779745914000,-500.0,0.00039756,120]
[423014004,1779745914000,-1022.72,0.00039756,120]
[423014005,1779745914000,-1022.92748858,0.00039756,120]
[423014006,1779745914000,-500.0,0.00039756,120]
[423014011,1779745914000,-500.0,0.00039756,120]
[423014030,1779745915000,-580.28626117,0.00039756,120]
[423014033,1779745915000,-200000.0,0.00039756,30]
[423014035,1779745915000,-3519.42197712,0.00039756,120]
[423014038,1779745915000,-500.0,0.00039756,120]
[423014034,1779745915000,-242559.04582549,0.00039756,90]
[423014037,1779745915000,-535.41791013,0.00039756,120]
[423014031,1779745915000,-448.5576664,0.00039756,120]
[423014036,1779745915000,-500.0,0.00039756,120]
[423014032,1779745915000,-287.73956132,0.00039756,120]
[423014022,1779745915000,-500.0,0.00039756,120]
[423014027,1779745915000,-500.0,0.00039756,120]
[423014028,1779745915000,-500.0,0.00039756,120]
[423014026,1779745915000,-500.0,0.00039756,120]
[423014025,1779745915000,-500.0,0.00039756,120]
[423014024,1779745915000,-500.0,0.00039756,120]
[423014023,1779745915000,-500.0,0.00039756,120]
[423014021,1779745915000,-500.0,0.00039756,120]
[423014039,1779745915000,-500.0,0.00039756,120]
[423014029,1779745915000,-500.0,0.00039756,120]
[423014041,1779745915000,-565.80706378,0.00039756,120]
[423014040,1779745915000,-500.0,0.00039756,120]
[423014062,1779745915000,-175.4661426,0.00039756,120]
[423014043,1779745915000,-500.0,0.00039756,120]
[423014061,1779745915000,-166.25377131,0.00039756,30]
[423014059,1779745915000,-500.0,0.00039756,120]
[423014060,1779745915000,-231.73970947,0.00039756,120]
[423014058,1779745915000,-203.58683454,0.00039756,120]
[423014056,1779745915000,-621.27709631,0.00039756,120]
[423014055,1779745915000,-231.30503172,0.00039756,120]
[423014053,1779745915000,-609.32822881,0.00039756,120]
[423014052,1779745915000,-501.2,0.00039756,120]
[423014057,1779745915000,-307.06468281,0.00039756,120]
[423014051,1779745915000,-500.0,0.00039756,120]
[423014054,1779745915000,-500.0,0.00039756,120]
[423014046,1779745915000,-219.93346721,0.00039756,30]
[423014042,1779745915000,-500.0,0.00039756,120]
[423014045,1779745915000,-560.48645234,0.00039756,120]
[423014044,1779745915000,-500.0,0.00039756,120]
[423014049,1779745915000,-686.0,0.00039756,120]
[423014047,1779745915000,-180.0,0.00039756,120]
[423014050,1779745915000,-500.0,0.00039756,120]
[423014048,1779745915000,-251.86271268,0.00039756,30]
[423014075,1779745916000,-277.87550004,0.00039756,120]
[423014081,1779745916000,-150.20380505,0.00039756,120]
[423014080,1779745916000,-207.84276316,0.00039756,120]
[423014079,1779745916000,-175.47929213,0.00039756,120]
[423014078,1779745916000,-153.87180844,0.00039756,120]
[423014077,1779745916000,-161.24625775,0.00039756,120]
[423014076,1779745916000,-260.2883502,0.00039756,120]
[423014074,1779745916000,-242.53592786,0.00039756,90]
[423014073,1779745916000,-500.0,0.00039756,90]
[423014084,1779745916000,-153.71190223,0.00039756,120]
[423014070,1779745916000,-182.58925878,0.00039756,120]
[423014067,1779745916000,-191.10073448,0.00039756,120]
[423014071,1779745916000,-259.11032801,0.00039756,120]
[423014069,1779745916000,-202.8722998,0.00039756,120]
[423014068,1779745916000,-210.94337537,0.00039756,120]
[423014066,1779745916000,-623.74569368,0.00039756,120]
[423014065,1779745916000,-155.8874682,0.00039756,120]
[423014063,1779745916000,-516.89684917,0.00039756,120]
[423014072,1779745916000,-169.82679599,0.00039756,120]
[423014083,1779745916000,-225.51530042,0.00039756,120]
[423014064,1779745916000,-198.404841,0.00039756,120]
[423014085,1779745916000,-238.47307163,0.00039756,120]
[423014082,1779745916000,-159.63693711,0.00039756,120]
[423014102,1779745916000,-267.0392149,0.00039756,120]
[423014103,1779745916000,-500.0,0.00039756,120]
[423014101,1779745916000,-500.0,0.00039756,120]
[423014097,1779745916000,-179.07835956,0.00039756,120]
[423014099,1779745916000,-278.41190517,0.00039756,120]
[423014100,1779745916000,-500.0,0.00039756,120]
[423014098,1779745916000,-500.0,0.00039756,120]
[423014095,1779745916000,-193.27071132,0.00039756,120]
[423014104,1779745916000,-177.87076714,0.00039756,120]
[423014094,1779745916000,-471.32948215,0.00039756,120]
[423014093,1779745916000,-198.11985243,0.00039756,120]
[423014092,1779745916000,-186.84412456,0.00039756,120]
[423014091,1779745916000,-165.16094794,0.00039756,120]
[423014090,1779745916000,-281.35344265,0.00039756,120]
[423014089,1779745916000,-170.94601454,0.00039756,120]
[423014086,1779745916000,-218.69189411,0.00039756,120]
[423014087,1779745916000,-430.04689324,0.00039756,120]
[423014088,1779745916000,-171.74383154,0.00039756,120]
[423014096,1779745916000,-212.40573868,0.00039756,120]
[423014116,1779745917000,-162.66520093,0.00039756,120]
[423014117,1779745917000,-169.3517381,0.00039756,120]
[423014121,1779745917000,-1371.27231814,0.00039756,120]
[423014118,1779745917000,-574.58021422,0.00039756,120]
[423014120,1779745917000,-1371.27231814,0.00039756,120]
[423014114,1779745917000,-154.59158802,0.00039756,120]
[423014115,1779745917000,-356.97032499,0.00039756,120]
[423014112,1779745917000,-158.3944,0.00039756,120]
[423014107,1779745917000,-500.0,0.00039756,120]
[423014110,1779745917000,-500.0,0.00039756,120]
[423014111,1779745917000,-500.0,0.00039756,120]
[423014109,1779745917000,-500.0,0.00039756,120]
[423014105,1779745917000,-500.0,0.00039756,120]
[423014106,1779745917000,-280.49430577,0.00039756,120]
[423014108,1779745917000,-178.85528409,0.00039756,120]
[423014119,1779745917000,-187.69824961,0.00039756,120]
[423014113,1779745917000,-166.00834765,0.00039756,120]
[423014122,1779745917000,-1371.27231814,0.00039756,120]
[423014124,1779745917000,-1371.27231814,0.00039756,120]
[423014123,1779745917000,-1371.27231814,0.00039756,120]
[423014142,1779745917000,-283.97044816,0.00039756,120]
[423014139,1779745917000,-244.72407625,0.00039756,120]
[423014141,1779745917000,-279.65353853,0.00039756,120]
[423014140,1779745917000,-222.54523795,0.00039756,120]
[423014138,1779745917000,-222.83307868,0.00039756,120]
[423014136,1779745917000,-1371.27231813,0.00039756,120]
[423014135,1779745917000,-1371.27231813,0.00039756,120]
[423014134,1779745917000,-184.83417657,0.00039756,120]
[423014137,1779745917000,-157.83476604,0.00039756,120]
[423014133,1779745917000,-1371.27231813,0.00039756,120]
[423014131,1779745917000,-1371.27231814,0.00039756,120]
[423014127,1779745917000,-1371.27231814,0.00039756,120]
[423014128,1779745917000,-1371.27231814,0.00039756,120]
[423014129,1779745917000,-1371.27231814,0.00039756,120]
[423014130,1779745917000,-354.10079754,0.00039756,120]
[423014126,1779745917000,-156.50060303,0.00039756,120]
[423014132,1779745917000,-1371.27231813,0.00039756,120]
[423014125,1779745917000,-1371.27231814,0.00039756,120]
[423014155,1779745918000,-569.51728141,0.00039756,120]
[423014156,1779745918000,-201.36470663,0.00039756,120]
[423014159,1779745918000,-165.54228525,0.00039756,120]
[423014162,1779745918000,-177.44156297,0.00039756,120]
[423014158,1779745918000,-295.15361041,0.00039756,120]
[423014157,1779745918000,-304.11532913,0.00039756,120]
[423014152,1779745918000,-230.08551209,0.00039756,120]
[423014160,1779745918000,-262.75989502,0.00039756,120]
[423014154,1779745918000,-151.81659921,0.00039756,120]
[423014145,1779745918000,-158.07209498,0.00039756,120]
[423014150,1779745918000,-158.99080271,0.00039756,120]
[423014148,1779745918000,-193.27933949,0.00039756,120]
[423014151,1779745918000,-161.94040834,0.00039756,120]
[423014149,1779745918000,-186.08291706,0.00039756,120]
[423014144,1779745918000,-270.1207621,0.00039756,120]
[423014147,1779745918000,-156.14115168,0.00039756,120]
[423014143,1779745918000,-257.3,0.00039756,120]
[423014161,1779745918000,-345.34056098,0.00039756,120]
[423014146,1779745918000,-301.84562335,0.00039756,120]
[423014153,1779745918000,-219.06688305,0.00039756,120]
[423014163,1779745918000,-173.78956269,0.00039756,120]
[423014184,1779745918000,-153.02653937,0.00039756,120]
[423014164,1779745918000,-191.99700538,0.00039756,120]
[423014165,1779745918000,-500.0,0.00039756,120]
[423014183,1779745918000,-237.06548256,0.00039756,120]
[423014179,1779745918000,-205.7877228,0.00039756,120]
[423014182,1779745918000,-500.0,0.00039756,120]
[423014181,1779745918000,-232.4112,0.00039756,120]
[423014180,1779745918000,-500.0,0.00039756,120]
[423014178,1779745918000,-181.5711012,0.00039756,120]
[423014177,1779745918000,-500.0,0.00039756,120]
[423014175,1779745918000,-203.0560915,0.00039756,120]
[423014185,1779745918000,-335.12,0.00039756,120]
[423014174,1779745918000,-184.70940231,0.00039756,120]
[423014176,1779745918000,-230.18497858,0.00039756,120]
[423014167,1779745918000,-238.498269,0.00039756,120]
[423014168,1779745918000,-500.0,0.00039756,120]
[423014169,1779745918000,-251.98345485,0.00039756,120]
[423014166,1779745918000,-500.0,0.00039756,120]
[423014170,1779745918000,-153.05413425,0.00039756,120]
[423014172,1779745918000,-269.3244651,0.00039756,120]
[423014173,1779745918000,-155.25983751,0.00039756,120]
[423014171,1779745918000,-309.10430765,0.00039756,120]
[423014198,1779745919000,-239.89221316,0.00039756,120]
[423014200,1779745919000,-566.31256806,0.00039756,120]
[423014201,1779745919000,-176.96563875,0.00039756,120]
[423014202,1779745919000,-195.36617295,0.00039756,120]
[423014199,1779745919000,-569.31000157,0.00039756,120]
[423014197,1779745919000,-155.61133757,0.00039756,120]
[423014196,1779745919000,-162.13293008,0.00039756,120]
[423014195,1779745919000,-484.65650331,0.00039756,120]
[423014189,1779745919000,-500.0,0.00039756,120]
[423014191,1779745919000,-206.67611933,0.00039756,120]
[423014194,1779745919000,-500.0,0.00039756,120]
[423014192,1779745919000,-246.75766024,0.00039756,120]
[423014190,1779745919000,-542.18748063,0.00039756,120]
[423014188,1779745919000,-152.10544292,0.00039756,120]
[423014187,1779745919000,-223.24355008,0.00039756,120]
[423014186,1779745919000,-223.83824978,0.00039756,120]
[423014203,1779745919000,-219.02957708,0.00039756,120]
[423014193,1779745919000,-500.0,0.00039756,120]
[423014204,1779745919000,-197.0234005,0.00039756,120]
[423014224,1779745919000,-4432.56,0.00039756,120]
[423014205,1779745919000,-169.210449,0.00039756,120]
[423014207,1779745919000,-284.0052147,0.00039756,120]
[423014225,1779745919000,-285.31218671,0.00039756,120]
[423014223,1779745919000,-426.88483052,0.00039756,120]
[423014221,1779745919000,-226.71166228,0.00039756,120]
[423014219,1779745919000,-383.27788519,0.00039756,120]
[423014218,1779745919000,-394.76771713,0.00039756,120]
[423014220,1779745919000,-1426.22251928,0.00039756,120]
[423014217,1779745919000,-182.0772571,0.00039756,120]
[423014213,1779745919000,-172.08991101,0.00039756,120]
[423014222,1779745919000,-449.3201,0.00039756,120]
[423014216,1779745919000,-298.98801926,0.00039756,120]
[423014214,1779745919000,-266.94750167,0.00039756,120]